fUSD/lending_fUSD_20240709
["ID","MTS","AMOUNT","RATE_DAILY","PERIOD"]
[331579677,1720539886696,5602.87066756,0.00011199,2]
[331579678,1720539894288,9404.02500498,0.00011199,2]
[331579679,1720539904774,3071.57439988,0.00011199,2]
[331579680,1720539909078,255.03,0.00011199,2]
[331579681,1720539927088,732.19238669,0.00011199,2]
[331579682,1720539973240,3712.1900595,0.00011199,2]
[331579683,1720539976251,1342.48292623,0.00011199,2]
[331579685,1720539984479,155.0,0.00011199,2]
[331579686,1720540028873,1261.86348953,0.00011199,2]
[331579687,1720540084202,2801.83425022,0.00011199,2]
[331579688,1720540145779,3074.42673232,0.00011199,2]
[331579689,1720540146979,5546.26690838,0.00011199,2]
[331579690,1720540209284,155.13954738,0.00011199,2]
[331579691,1720540212871,9244.88765842,0.00011199,2]
[331579695,1720540231998,-500.0,0.0001126,2]
[331579696,1720540232008,-2000.0,0.00012088,2]
[331579697,1720540232019,-250.0,0.00012188,2]
[331579698,1720540232028,-200.0,0.00012255,2]
[331579699,1720540232038,-50.0,0.00012256,2]
[331579702,1720540232857,-397.82076205,0.00012256,2]
[331579704,1720540232871,-2683.91923795,0.00012256,2]
[331579705,1720540232880,-250.0,0.00012281,2]
[331579706,1720540232890,-150.0,0.00012301,2]
[331579708,1720540232900,-175.68,0.00012339,2]
[331579710,1720540232910,-167.56,0.00012534,2]
[331579712,1720540232920,-179.748894,0.000126,2]
[331579714,1720540232929,-224.1,0.00012628,2]
[331579716,1720540232939,-1000.0,0.00012651,2]
[331579717,1720540232948,-532.07,0.00012792,2]
[331579718,1720540232958,-179.748894,0.0001281,2]
[331579719,1720540232967,-268.30066385,0.00012904,2]
[331579720,1720540232979,-231.69933615,0.00012904,2]
[331579721,1720540232988,-633.61683514,0.00012968,2]
[331579722,1720540233000,-270.26587227,0.00012968,2]
[331579723,1720540233011,-3189.35,0.00012968,2]
[331579724,1720540233024,-7000.0,0.00012968,2]
[331579725,1720540233035,-1329.28402773,0.00012968,2]
[331579726,1720540233046,-280.80824921,0.00012968,2]
[331579727,1720540233058,-1580.67501565,0.00012968,2]
[331579728,1720540233067,-179.748894,0.0001302,2]
[331579729,1720540233077,-150.0,0.00013205,2]
[331579730,1720540233086,-150.0,0.00013205,2]
[331579731,1720540233095,-300.0,0.00013205,2]
[331579732,1720540233104,-179.748894,0.0001323,2]
[331579733,1720540233114,-1865.0,0.000133,2]
[331579734,1720540233123,-3000.0,0.0001336,2]
[331579735,1720540233133,-1682.64648505,0.0001339,2]
[331579736,1720540233143,-150.0,0.00013399,2]
[331579737,1720540233152,-7882.368689,0.000134,2]
[331579738,1720540233165,-865.3161,0.000134,2]
[331579739,1720540233174,-321.06886542,0.000134,2]
[331579740,1720540233184,-261.52393374,0.000134,2]
[331579741,1720540233193,-1392.67864661,0.00013472,2]
[331579742,1720540233202,-4306.60078189,0.00013499,2]
[331579743,1720540233211,-300.02,0.00013499,2]
[331579744,1720540233221,-4460.40734498,0.000135,2]
[331579745,1720540233232,-271.05628702,0.000135,2]
[331579757,1720540237946,-544.57763909,0.000135,2]
[331579758,1720540237958,-328.92787868,0.000135,2]
[331579759,1720540237970,-3325.0,0.000135,2]
[331579760,1720540237982,-952.57554,0.000135,2]
[331579761,1720540237994,-620.0,0.000135,2]
[331579762,1720540238006,-357.77198037,0.000135,2]
[331579763,1720540238024,-350.15917573,0.000135,2]
[331579764,1720540238060,-955.27057878,0.000135,2]
[331579765,1720540238072,-275.96458678,0.000135,2]
[331579766,1720540238114,-1235.47644,0.000135,2]
[331579767,1720540238125,-5089.65075638,0.000135,2]
[331579775,1720540239909,-442.30458052,0.000135,2]
[331579776,1720540239921,-914.50249992,0.000135,2]
[331579777,1720540239965,-490.6561142,0.000135,2]
[331579778,1720540240019,-2013.124334,0.000135,2]
[331579779,1720540240032,-139639.03875506,0.000135,2]
[331579780,1720540240077,-1730.84596,0.000135,2]
[331579781,1720540240088,-9210.76,0.000135,2]
[331579782,1720540240132,-16074.37724907,0.000135,2]
[331579783,1720540240144,-670.2029852,0.000135,2]
[331579784,1720540240156,-38037.51809323,0.000135,2]
[331579785,1720540240168,-300.0495264,0.000135,2]
[331579786,1720540240188,-698.50638546,0.000135,2]
[331579787,1720540240199,-9080.8951318,0.000135,2]
[331579788,1720540240211,-9461.99847156,0.000135,2]
[331579789,1720540240229,-226489.50562666,0.000135,2]
[331579879,1720540242983,-2984.75,0.000135,2]
[331579880,1720540242995,-500.32600203,0.000135,2]
[331579886,1720540244186,-687.85090234,0.000135,2]
[331579887,1720540244199,-993.12736041,0.000135,2]
[331579888,1720540245267,-431.99937387,0.000135,2]
[331579889,1720540245289,-25609.99941106,0.000135,2]
[331579890,1720540245300,-37474.24448721,0.000135,2]
[331579891,1720540245311,-1596.30903577,0.000135,2]
[331579892,1720540245322,-327.12129972,0.000135,2]
[331579894,1720540247407,-950.54493319,0.000135,2]
[331579895,1720540247433,-626.86484445,0.000135,2]
[331579896,1720540302678,881.24085542,0.00011199,2]
[331579897,1720540311784,21002.69162742,0.00011199,2]
[331579898,1720540353300,3242.7318206,0.00011199,2]
[331579899,1720540360856,499.71,0.00010718,2]
[331579900,1720540361625,960.3459936,0.00011199,2]
[331579901,1720540367863,155.0,0.00011199,2]
[331579902,1720540405115,292.45714013,0.00011199,2]
[331579903,1720540415875,167.47,0.00010087,2]
[331579904,1720540434233,5524.74150994,0.00011199,2]
[331579906,1720540476871,195.46826672,0.00011199,2]
[331579908,1720540494689,552.51494431,0.00011199,2]
[331579911,1720540511399,2445.6128013,0.00011199,2]
[331579912,1720540534494,1135.76118208,0.00011199,2]
[331579913,1720540540294,1334.13389627,0.00011199,2]
[331579914,1720540541244,1500.0,0.00011199,2]
[331579915,1720540545245,2200.57256464,0.00011199,2]
[331579916,1720540582124,650.65547744,0.00011199,2]
[331579917,1720540588501,627.40372994,0.00011199,2]
[331579918,1720540605236,651.75967107,0.00011199,2]
[331579919,1720540646122,300.0,0.00011199,2]
[331579920,1720540650696,553.19201684,0.00011199,2]
[331579921,1720540654584,158.01594335,0.00011199,2]
[331579922,1720540655202,1077.81139327,0.00011199,2]
[331579924,1720540662900,193.62934922,0.00011199,2]
[331579925,1720540663231,163.85990627,0.00011199,2]
[331579926,1720540671179,155.30947103,0.00011199,2]
[331579927,1720540680460,308.31366619,0.00011199,2]
[331579928,1720540684758,155.30247153,0.00011199,2]
[331579929,1720540696740,169.57789502,0.00011199,2]
[331579930,1720540710110,295.9685511,0.00011199,2]
[331579931,1720540715001,265.41435654,0.00011199,2]
[331579932,1720540721887,366.99921746,0.00011199,2]
[331579933,1720540726774,300.0,0.00011199,2]
[331579934,1720540740673,282.582379,0.00011199,2]
[331579937,1720540834812,1649.01568666,0.00011199,2]
[331579938,1720540850709,553.19201684,0.00011199,2]
[331579939,1720540873781,155.0,0.00011199,2]
[331579941,1720540931567,1787.47527683,0.00011199,2]
[331579942,1720540944517,10515.60566167,0.00011199,2]
[331579943,1720540967217,254.18722909,0.00011199,2]
[331579944,1720540969084,627.40372994,0.00011199,2]
[331579945,1720540973890,495.08,0.00010105,2]
[331579949,1720541088082,155.80827537,0.00011199,2]
[331579950,1720541088146,266.94758565,0.00011199,2]
[331579951,1720541106078,304.90815934,0.00011199,2]
[331579952,1720541109301,155.09550556,0.00011199,2]
[331579953,1720541112479,414.49823808,0.00011199,2]
[331579954,1720541128253,200.20137694,0.00011199,2]
[331579955,1720541134227,184.7840485,0.00011199,2]
[331579956,1720541141156,345.46691801,0.00011199,2]
[331579957,1720541141235,319.59925003,0.00011199,2]
[331579958,1720541145716,224.71027766,0.00011199,2]
[331579959,1720541169192,201.42918999,0.00011199,2]
[331579960,1720541218131,3025.56630577,0.00011199,2]
[331579961,1720541387308,889.85585663,0.00011199,2]
[331579962,1720541388108,627.40372994,0.00011199,2]
[331579963,1720541405330,155.0,0.00011199,2]
[331579964,1720541432194,-500.0,0.0001126,2]
[331579965,1720541432204,-1052.180284,0.00011855,2]
[331579966,1720541432214,-9739.30075383,0.00011953,2]
[331579967,1720541432846,-1038.54924617,0.00011953,2]
[331579968,1720541432856,-250.0,0.00011975,2]
[331579970,1720541432866,-2368.45,0.00011981,2]
[331579972,1720541432876,-1782.14563469,0.00011981,2]
[331579974,1720541432886,-179.28,0.00012004,2]
[331579976,1720541432895,-250.0,0.00012089,2]
[331579978,1720541432905,-200.0,0.00012243,2]
[331579980,1720541432914,-495.08,0.00012369,2]
[331579981,1720541432924,-783.63,0.00012369,2]
[331579982,1720541432933,-3103.29,0.00012393,2]
[331579983,1720541432942,-150.17,0.00012437,2]
[331579984,1720541432951,-2203.02,0.0001252,2]
[331579985,1720541432960,-150.17,0.0001253,2]
[331579986,1720541432969,-499.99,0.0001253,2]
[331579987,1720541432979,-168.1,0.00012609,2]
[331579988,1720541432988,-120.66885977,0.00012622,2]
[331579989,1720541433000,-29.50114023,0.00012622,2]
[331579990,1720541433009,-172.06,0.00012636,2]
[331579991,1720541433019,-454.04598383,0.00012691,2]
[331579992,1720541433031,-545.95401617,0.00012691,2]
[331579993,1720541433041,-150.17,0.00012715,2]
[331579994,1720541433050,-150.17,0.00012808,2]
[331579995,1720541433060,-150.17,0.000129,2]
[331579996,1720541433071,-500.0,0.00012904,2]
[331579997,1720541433081,-150.17,0.00012993,2]
[331579998,1720541433091,-150.17,0.00013085,2]
[331579999,1720541433101,-1000.0,0.000133,2]
[331580000,1720541433110,-1124.49144631,0.0001336,2]
[331580001,1720541433122,-1875.50855369,0.0001336,2]
[331580002,1720541433132,-749.5555,0.000134,2]
[331580003,1720541433141,-290.3424,0.000134,2]
[331580004,1720541433150,-29248.9472,0.000134,2]
[331580005,1720541433160,-298.56781629,0.000134,2]
[331580006,1720541433170,-1006.0,0.000134,2]
[331580007,1720541433179,-1152.0,0.000135,2]
[331580008,1720541433188,-8850.85397283,0.000135,2]
[331580009,1720541433200,-935.99632994,0.000135,2]
[331580010,1720541433211,-530.14499983,0.000135,2]
[331580011,1720541433222,-4998.39904866,0.000135,2]
[331580012,1720541433233,-8139.92332674,0.000135,2]
[331580013,1720541433244,-478.1956183,0.000135,2]
[331580014,1720541433294,736.7862,0.0001116,2]
[331580025,1720541438990,-3486.07570309,0.00013472,2]
[331580026,1720541439001,-4035.01429691,0.000135,2]
[331580027,1720541439040,-288.435,0.000135,2]
[331580028,1720541439058,-367.18970664,0.000135,2]
[331580029,1720541439071,-393.19965,0.000135,2]
[331580030,1720541439084,-4392.91305409,0.000135,2]
[331580031,1720541439096,-7791.09881148,0.000135,2]
[331580032,1720541439109,-479.24999973,0.000135,2]
[331580033,1720541439121,-7457.51635288,0.000135,2]
[331580034,1720541439133,-3125.94448,0.000135,2]
[331580035,1720541439146,-19071.47605655,0.000135,2]
[331580036,1720541439158,-1115.92565592,0.000135,2]
[331580037,1720541439170,-7409.91769019,0.000135,2]
[331580038,1720541439183,-2130.73924664,0.000135,2]
[331580039,1720541439195,-283.86999996,0.000135,2]
[331580040,1720541439207,-27696.48739471,0.000135,2]
[331580041,1720541439220,-549.84720416,0.000135,2]
[331580042,1720541440104,-1311.34472014,0.000134,2]
[331580045,1720541440160,-1545.98927986,0.000134,2]
[331580046,1720541440170,-182843.97785314,0.000135,2]
[331580047,1720541440182,-412380.7113045,0.000135,2]
[331580048,1720541440195,-254.13298683,0.000135,2]
[331580049,1720541440208,-5764.9,0.000135,2]
[331580050,1720541440219,-3163.67081893,0.000135,2]
[331580051,1720541440231,-836.63804983,0.000135,2]
[331580052,1720541440243,-1055.68366152,0.000135,2]
[331580053,1720541440264,-1720.67636963,0.000135,2]
[331580054,1720541440277,-3315.2,0.000135,2]
[331580055,1720541440324,-971.108,0.000135,2]
[331580056,1720541440378,-1626.45291562,0.000135,2]
[331580057,1720541440390,-5237.06,0.000135,2]
[331580058,1720541440434,-750.72000001,0.000135,2]
[331580059,1720541440447,-1156.68,0.000135,2]
[331580060,1720541440459,-359.44640036,0.000135,2]
[331580061,1720541440470,-522.90703602,0.000135,2]
[331580062,1720541440481,-400.07483383,0.000135,2]
[331580064,1720541440492,-17100.0,0.000135,2]
[331580101,1720541443187,-702.48251198,0.000135,2]
[331580102,1720541443242,-10255.70878323,0.000135,2]
[331580103,1720541443254,-3432.88,0.000135,2]
[331580104,1720541443265,-6690.018384,0.000135,2]
[331580105,1720541443279,-11877.07977951,0.000135,2]
[331580106,1720541443299,-701.78153052,0.000135,2]
[331580107,1720541443311,-1930.675,0.000135,2]
[331580108,1720541443353,-105783.32595014,0.000135,2]
[331580109,1720541443374,-12773.5267494,0.000135,2]
[331580110,1720541443387,-354.726,0.000135,2]
[331580111,1720541443399,-1718.60163644,0.000135,2]
[331580112,1720541443411,-1082.91734936,0.000135,2]
[331580113,1720541443422,-6000.0,0.000135,2]
[331580114,1720541443436,-723.27767348,0.000135,2]
[331580115,1720541443448,-1381.40867087,0.000135,2]
[331580116,1720541443463,-748.724,0.000135,2]
[331580117,1720541443474,-10992.66936184,0.000135,2]
[331580118,1720541443485,-604.95862919,0.000135,2]
[331580134,1720541444628,-109239.0406281,0.000135,2]
[331580150,1720541446257,-310.75725806,0.000135,2]
[331580151,1720541446270,-990155.10236893,0.000135,2]
[331580152,1720541446313,-8470.22874341,0.000135,2]
[331580153,1720541446326,-1302.47389257,0.000135,2]
[331580154,1720541446337,-38961.50295327,0.000135,2]
[331580155,1720541446348,-20185.22428866,0.000135,2]
[331580156,1720541446359,-2427.55502287,0.000135,2]
[331580157,1720541446421,-382.17477746,0.000135,2]
[331580158,1720541446433,-5749.43346449,0.000135,2]
[331580159,1720541446477,-255.95603174,0.000135,2]
[331580160,1720541446534,-489894.90554944,0.000135,2]
[331580161,1720541446546,-1722.752427,0.000135,2]
[331580163,1720541446558,-3946.5,0.000135,2]
[331580164,1720541446569,-7265.7,0.000135,2]
[331580165,1720541446595,-34264.10693623,0.000135,2]
[331580166,1720541446607,-15811.21804651,0.000135,2]
[331580167,1720541446619,-719.95798759,0.000135,2]
[331580191,1720541626579,487.24,0.00010454,2]
[331580192,1720541674470,11323.04420243,0.00010454,2]
[331580193,1720541680372,1295.53948665,0.00010454,2]
[331580201,1720541805401,596.62532006,0.00011199,2]
[331580204,1720541824143,618.82739495,0.00011199,2]
[331580205,1720541932793,651.75261058,0.00011199,2]
[331580208,1720541956849,155.17489344,0.00011199,2]
[331580210,1720542090628,296.19802604,0.00011199,2]
[331580211,1720542101345,12282.55495953,0.00011199,2]
[331580212,1720542103042,2375.40634291,0.00011199,2]
[331580213,1720542172807,488.94,0.00010377,2]
[331580215,1720542189925,1265.58472584,0.00011199,2]
[331580216,1720542229152,552.57239721,0.00011199,2]
[331580217,1720542252014,1050.0,0.00011199,2]
[331580218,1720542294815,651.45998856,0.00011199,2]
[331580219,1720542305506,366.11090361,0.00011199,2]
[331580220,1720542322481,155.0,0.00011199,2]
[331580221,1720542345886,218.40264018,0.00011199,2]
[331580222,1720542372508,159.15927807,0.00011199,2]
[331580224,1720542384583,787.19208309,0.00011199,2]
[331580225,1720542402307,155.0,0.00011199,2]
[331580226,1720542415356,882.59216232,0.00011199,2]
[331580227,1720542535612,527.81158355,0.00011199,2]
[331580228,1720542546316,346.03148912,0.00011199,2]
[331580229,1720542590083,524.57681731,0.00011199,2]
[331580230,1720542601590,1075.22218458,0.00011199,2]
[331580231,1720542604461,599.42585748,0.00011199,2]
[331580232,1720542604650,155.0,0.00011199,2]
[331580233,1720542606085,155.77985922,0.00011199,2]
[331580234,1720542632386,-500.0,0.0001126,2]
[331580235,1720542632395,-161.19035565,0.0001169,2]
[331580236,1720542632404,-889.8302,0.0001179,2]
[331580237,1720542632414,-321.6228,0.00012,2]
[331580238,1720542632423,-407.93378194,0.0001221,2]
[331580239,1720542632844,-592.06621806,0.0001221,2]
[331580240,1720542632855,-250.0,0.00012225,2]
[331580241,1720542632870,-1230.47,0.00012226,2]
[331580242,1720542632883,-172.06,0.00012233,2]
[331580243,1720542632894,-345.41,0.00012246,2]
[331580244,1720542632905,-627.99,0.00012247,2]
[331580245,1720542632916,-389.78,0.00012272,2]
[331580246,1720542632927,-370.2,0.00012272,2]
[331580247,1720542632938,-155.0,0.00012273,2]
[331580248,1720542632949,-172.94473413,0.00012273,2]
[331580249,1720542632960,-226.5848512,0.00012273,2]
[331580250,1720542632971,-193.71936803,0.00012273,2]
[331580251,1720542632981,-12062.55,0.00012273,2]
[331580252,1720542632992,-250.0,0.00012273,2]
[331580253,1720542633004,-150.0,0.00012274,2]
[331580254,1720542633015,-2369.83,0.00012287,2]
[331580255,1720542633024,-302.85959028,0.00012302,2]
[331580256,1720542633034,-250.61758327,0.00012302,2]
[331580257,1720542633044,-155.14159365,0.00012314,2]
[331580258,1720542633054,-218.1,0.00012331,2]
[331580259,1720542633066,-11551.86,0.00012331,2]
[331580260,1720542633076,-488.94,0.00012641,2]
[331580261,1720542633085,-500.0,0.00012904,2]
[331580262,1720542633096,-24850.39311224,0.00013,2]
[331580263,1720542633108,-807.21423768,0.00013,2]
[331580264,1720542633120,-679.73,0.00013,2]
[331580265,1720542633132,-523.97309268,0.00013,2]
[331580266,1720542633143,-1312.15,0.00013,2]
[331580267,1720542633156,-10956.43800926,0.00013,2]
[331580268,1720542633168,-966.43463374,0.00013,2]
[331580269,1720542633180,-463.61871879,0.00013,2]
[331580270,1720542633191,-6827.34329163,0.00013,2]
[331580271,1720542633204,-739.69628748,0.00013,2]
[331580272,1720542633217,-6397.92399649,0.00013,2]
[331580273,1720542633228,-233.46867856,0.00013128,2]
[331580274,1720542633239,-150.0,0.0001323,2]
[331580275,1720542633249,-150.0,0.00013232,2]
[331580276,1720542633262,-150.0,0.00013232,2]
[331580277,1720542633272,-150.0,0.00013235,2]
[331580278,1720542633283,-150.0,0.00013238,2]
[331580279,1720542633293,-150.0,0.00013246,2]
[331580280,1720542633304,-150.0,0.00013246,2]
[331580281,1720542633313,-150.0,0.00013251,2]
[331580282,1720542633324,-150.0,0.00013253,2]
[331580283,1720542633334,-150.0,0.00013255,2]
[331580284,1720542633343,-150.0,0.0001326,2]
[331580285,1720542633353,-150.0,0.00013272,2]
[331580286,1720542633362,-150.0,0.00013272,2]
[331580287,1720542633372,-150.0,0.00013275,2]
[331580288,1720542633381,-150.0,0.00013281,2]
[331580289,1720542633391,-150.0,0.00013284,2]
[331580290,1720542633400,-150.0,0.00013287,2]
[331580291,1720542633410,-150.0,0.0001329,2]
[331580292,1720542633419,-150.0,0.00013295,2]
[331580293,1720542633429,-150.0,0.00013297,2]
[331580294,1720542633438,-150.0,0.00013298,2]
[331580295,1720542633447,-150.0,0.000133,2]
[331580296,1720542633457,-150.0,0.00013303,2]
[331580297,1720542633466,-150.0,0.0001331,2]
[331580298,1720542633476,-150.0,0.00013311,2]
[331580299,1720542633485,-150.0,0.00013311,2]
[331580300,1720542633495,-150.0,0.00013312,2]
[331580301,1720542633507,-150.0,0.00013313,2]
[331580302,1720542633516,-150.0,0.00013314,2]
[331580303,1720542633526,-150.0,0.00013314,2]
[331580304,1720542633535,-155.52614164,0.00013314,2]
[331580305,1720542633545,-150.0,0.00013318,2]
[331580306,1720542633555,-150.0,0.00013326,2]
[331580307,1720542633564,-150.0,0.00013329,2]
[331580308,1720542633573,-150.0,0.0001333,2]
[331580309,1720542633583,-150.0,0.00013332,2]
[331580310,1720542633596,-150.0,0.00013332,2]
[331580311,1720542633607,-150.0,0.00013335,2]
[331580312,1720542633616,-150.0,0.00013338,2]
[331580313,1720542633626,-150.0,0.0001334,2]
[331580314,1720542633635,-150.0,0.00013348,2]
[331580315,1720542633645,-150.0,0.00013349,2]
[331580316,1720542633654,-150.0,0.00013351,2]
[331580317,1720542633663,-150.0,0.00013353,2]
[331580318,1720542633673,-150.0,0.00013355,2]
[331580319,1720542633683,-150.0,0.00013356,2]
[331580320,1720542633692,-150.0,0.00013357,2]
[331580321,1720542633703,-150.0,0.0001336,2]
[331580322,1720542633712,-3000.0,0.0001336,2]
[331580323,1720542633723,-150.0,0.00013364,2]
[331580324,1720542633734,-150.0,0.00013365,2]
[331580325,1720542633743,-150.0,0.00013365,2]
[331580326,1720542633755,-150.0,0.00013369,2]
[331580327,1720542633765,-150.0,0.00013372,2]
[331580328,1720542633775,-150.0,0.00013373,2]
[331580329,1720542633785,-150.0,0.00013374,2]
[331580330,1720542633795,-150.0,0.00013376,2]
[331580331,1720542633804,-150.0,0.00013381,2]
[331580332,1720542633814,-150.0,0.00013385,2]
[331580333,1720542633823,-150.0,0.00013388,2]
[331580334,1720542633833,-3000.0,0.0001339,2]
[331580335,1720542633843,-3000.0,0.0001339,2]
[331580336,1720542633852,-150.0,0.00013395,2]
[331580337,1720542633862,-221.4142,0.00013395,2]
[331580338,1720542633873,-2289.2145,0.000134,2]
[331580339,1720542633882,-1000.0,0.000134,2]
[331580340,1720542633892,-1000.0,0.000134,2]
[331580341,1720542633901,-1000.0,0.000134,2]
[331580342,1720542633910,-1023.0,0.000134,2]
[331580343,1720542633921,-321.5650066,0.000134,2]
[331580344,1720542633931,-150.0,0.00013405,2]
[331580345,1720542633940,-152.75849626,0.00013407,2]
[331580346,1720542633951,-150.0,0.00013411,2]
[331580347,1720542633962,-150.0,0.00013415,2]
[331580348,1720542633971,-150.0,0.00013416,2]
[331580349,1720542633981,-150.0,0.00013417,2]
[331580350,1720542633991,-150.0,0.00013418,2]
[331580351,1720542634004,-150.0,0.00013418,2]
[331580352,1720542634014,-3000.0,0.0001342,2]
[331580353,1720542634023,-150.0,0.00013421,2]
[331580354,1720542634033,-150.0,0.00013422,2]
[331580355,1720542634042,-150.0,0.00013422,2]
[331580356,1720542634052,-150.0,0.0001343,2]
[331580357,1720542634062,-150.0,0.00013432,2]
[331580358,1720542634071,-150.0,0.0001344,2]
[331580359,1720542634080,-150.0,0.00013443,2]
[331580360,1720542634090,-150.0,0.00013448,2]
[331580361,1720542634100,-150.0,0.00013448,2]
[331580362,1720542634109,-150.0,0.00013449,2]
[331580363,1720542634119,-150.0,0.00013455,2]
[331580364,1720542634128,-938.0,0.00013456,2]
[331580365,1720542634138,-150.0,0.00013456,2]
[331580366,1720542634148,-150.0,0.00013458,2]
[331580367,1720542634158,-150.0,0.00013461,2]
[331580368,1720542634168,-150.0,0.00013463,2]
[331580369,1720542634178,-150.0,0.00013465,2]
[331580370,1720542634187,-150.0,0.00013467,2]
[331580371,1720542634197,-3000.0,0.0001347,2]
[331580372,1720542634207,-150.0,0.00013471,2]
[331580373,1720542634217,-150.0,0.00013472,2]
[331580374,1720542634227,-309.83496123,0.00013472,2]
[331580375,1720542634237,-150.0,0.00013474,2]
[331580376,1720542634246,-150.0,0.00013475,2]
[331580377,1720542634261,-150.0,0.00013479,2]
[331580378,1720542634271,-150.0,0.00013488,2]
[331580379,1720542634282,-150.0,0.00013489,2]
[331580380,1720542634292,-150.0,0.00013491,2]
[331580381,1720542634303,-150.0,0.00013494,2]
[331580382,1720542634312,-43208.3827261,0.00013495,2]
[331580383,1720542634327,-290.3254318,0.00013495,2]
[331580384,1720542634337,-2342.8171347,0.00013495,2]
[331580385,1720542634347,-6279.85854657,0.00013495,2]
[331580386,1720542634361,-968.08911481,0.00013495,2]
[331580387,1720542634373,-2163.25125072,0.00013495,2]
[331580388,1720542634384,-150.0,0.00013497,2]
[331580389,1720542634394,-243.3706196,0.00013499,2]
[331580390,1720542634404,-2224.40081104,0.000135,2]
[331580391,1720542634416,-270341.11978012,0.000135,2]
[331580405,1720542638282,-2876.85209186,0.0001221,2]
[331580406,1720542638293,-298.50467804,0.00012273,2]
[331580407,1720542638304,-545.8850205,0.00012314,2]
[331580408,1720542638315,-168.14640675,0.000134,2]
[331580409,1720542638325,-6229.7719571,0.000135,2]
[331580410,1720542638401,-545.8850205,0.000135,2]
[331580480,1720542640524,-512.6838,0.00013395,2]
[331580481,1720542640533,-933.49871,0.000135,2]
[331580482,1720542640545,-694.45565558,0.000135,2]
[331580483,1720542640584,-12729.51414124,0.000135,2]
[331580549,1720542643410,-168.14640675,0.00013471,2]
[331580551,1720542643420,-243.37061959,0.00013499,2]
[331580553,1720542643429,-437474.44483722,0.000135,2]
[331580555,1720542643438,-155.0,0.000135,2]
[331580557,1720542643447,-200.0,0.000135,2]
[331580559,1720542643456,-2000.0,0.000135,2]
[331580560,1720542643466,-200.0,0.000135,2]
[331580562,1720542643476,-2000.0,0.000135,2]
[331580564,1720542643485,-200.0,0.000135,2]
[331580566,1720542643496,-3000.0,0.000135,2]
[331580568,1720542643506,-3000.0,0.000135,2]
[331580569,1720542643517,-3000.0,0.000135,2]
[331580570,1720542643526,-3000.0,0.000135,2]
[331580571,1720542643536,-2000.0,0.000135,2]
[331580572,1720542643547,-179.28,0.00013505,2]
[331580573,1720542643556,-1156.82676208,0.00013516,2]
[331580574,1720542643566,-618.97352402,0.00013516,2]
[331580575,1720542643575,-1830.0,0.0001355,2]
[331580576,1720542643587,-5831.808,0.0001355,2]
[331580577,1720542643597,-1251.0,0.0001355,2]
[331580578,1720542643606,-361.0,0.0001355,2]
[331580579,1720542643615,-5198.787,0.0001355,2]
[331580580,1720542643624,-1202.706,0.0001355,2]
[331580581,1720542643636,-1665.0,0.0001355,2]
[331580582,1720542643646,-1659.0,0.0001355,2]
[331580583,1720542643656,-3000.0,0.0001355,2]
[331580584,1720542643665,-19886.52007802,0.00013561,2]
[331580585,1720542643674,-285.04380365,0.00013574,2]
[331580586,1720542643683,-358.19029512,0.00013574,2]
[331580587,1720542643691,-9857.10795239,0.0001358,2]
[331580588,1720542643700,-1913.013177,0.0001359,2]
[331580589,1720542643710,-7684.6576132,0.0001359,2]
[331580590,1720542643719,-3000.0,0.0001362,2]
[331580591,1720542643729,-200.0,0.00013635,2]